fUSD/lending_fUSD_20241019
["ID","MTS","AMOUNT","RATE_DAILY","PERIOD"]
[340485341,1729303845822,-246.535947,0.00012329,2]
[340485342,1729303845831,-246.535947,0.00012329,2]
[340485343,1729303845840,-246.535947,0.00012329,2]
[340485344,1729303845850,-246.535947,0.00012329,2]
[340485345,1729303845860,-246.535947,0.00012329,2]
[340485346,1729303845870,-246.535947,0.00012329,2]
[340485347,1729303845879,-154.187068,0.00012329,2]
[340485348,1729303845889,-151.0,0.00012329,2]
[340485349,1729303845899,-151.0,0.00012329,2]
[340485350,1729303845908,-151.0,0.00012329,2]
[340485351,1729303845918,-612.388641,0.00012329,2]
[340485352,1729303845927,-151.0,0.00012329,2]
[340485353,1729303845936,-151.0,0.00012329,2]
[340485354,1729303845945,-612.388641,0.00012329,2]
[340485355,1729303845955,-612.388641,0.00012329,2]
[340485356,1729303845965,-612.388641,0.00012329,2]
[340485357,1729303845975,-612.388641,0.00012329,2]
[340485358,1729303845984,-612.38865,0.00012329,2]
[340485359,1729303845993,-151.0,0.00012329,2]
[340485360,1729303846002,-151.0,0.00012329,2]
[340485361,1729303846011,-151.0,0.00012329,2]
[340485362,1729303846020,-151.0,0.00012329,2]
[340485363,1729303846035,-151.0,0.00012329,2]
[340485364,1729303846045,-246.535947,0.00012329,2]
[340485365,1729303846054,-246.535947,0.00012329,2]
[340485366,1729303846064,-246.535947,0.00012329,2]
[340485367,1729303846074,-246.535947,0.00012329,2]
[340485368,1729303846083,-246.535947,0.00012329,2]
[340485371,1729303846253,-246.535947,0.00012329,2]
[340485372,1729303846264,-246.535947,0.00012329,2]
[340485373,1729303846275,-246.535947,0.00012329,2]
[340485374,1729303846285,-246.535947,0.00012329,2]
[340485375,1729303846295,-246.535951,0.00012329,2]
[340485376,1729303846304,-500.89060031,0.00012342,2]
[340485377,1729303846315,-500.0,0.00012373,2]
[340485378,1729303846325,-167.0,0.00012445,2]
[340485379,1729303846334,-2701.8423932,0.00012456,2]
[340485380,1729303846344,-41980.6195253,0.00012579,2]
[340485381,1729303846354,-291.686222,0.00012579,2]
[340485382,1729303846363,-184.09,0.00012603,2]
[340485383,1729303846373,-759.53,0.00012603,2]
[340485384,1729303846383,-156.76187919,0.000129,2]
[340485385,1729303846395,-2174.52005367,0.00013,4]
[340485386,1729303846406,-184.09,0.00013151,2]
[340485387,1729303846415,-759.53,0.00013151,2]
[340485388,1729303846425,-742.52,0.00013251,2]
[340485389,1729303846435,-1000.0,0.00013367,2]
[340485390,1729303846445,-243.6,0.0001361,2]
[340485391,1729303846455,-529.05861329,0.00013698,2]
[340485392,1729303846465,-1000.0,0.00013742,2]
[340485393,1729303846476,-8668.79087031,0.000138,3]
[340485394,1729303955673,1094.0,0.00027,120]
[340485395,1729304207300,162.16,0.00025559,120]
[340485396,1729304784397,550.0,0.0001,2]
[340485397,1729304832135,-431.9931,0.00010894,2]
[340485398,1729304832154,-869.86459027,0.000109,2]
[340485399,1729304832174,-155.15,0.00010959,2]
[340485400,1729304832195,-28.69538763,0.00010998,2]
[340485401,1729304844111,-364.4613,0.000109,2]
[340485402,1729304844131,-271.30461237,0.00010998,2]
[340485403,1729304844150,-150.0,0.00010999,2]
[340485404,1729304844169,-72.3963576,0.00010999,2]
[340485422,1729305032845,-299.00615911,0.0001089,2]
[340485427,1729305038460,-1203.99384089,0.0001089,2]
[340485428,1729305038469,-153.23158899,0.000109,2]
[340485429,1729305038485,-2084.0327375,0.000109,2]
[340485430,1729305038497,-3251.88530753,0.000109,2]
[340485432,1729305038508,-2010.85036598,0.000109,2]
[340485433,1729305038517,-150.0,0.00010999,2]
[340485434,1729305038527,-5.9330554,0.00010999,2]
[340485435,1729305038567,-285.49172499,0.00010999,2]
[340485436,1729305038578,-136.17886201,0.00010999,2]
[340485437,1729305038587,-169.2937489,0.00010999,2]
[340485438,1729305038596,-500.0,0.00010999,2]
[340485439,1729305038606,-500.0,0.00010999,2]
[340485440,1729305038615,-215.50786724,0.00010999,2]
[340485441,1729305038626,-104.79614793,0.00010999,2]
[340485442,1729305038636,-861.91653355,0.00011,2]
[340485443,1729305038671,-6343.80348218,0.00011,2]
[340485444,1729305038682,-822.49017547,0.00011,2]
[340485445,1729305038694,-381.33465368,0.00011,2]
[340485446,1729305038705,-538.79913189,0.00011,2]
[340485447,1729305038716,-285.07814429,0.00011,2]
[340485448,1729305038727,-566.76354058,0.00011,2]
[340485449,1729305038738,-358.33485164,0.00011,2]
[340485450,1729305038749,-3524.79836481,0.00011,2]
[340485451,1729305038760,-667.09206747,0.00011,2]
[340485452,1729305038776,-3369.41822919,0.00011,2]
[340485453,1729305038786,-705.90173819,0.00011,2]
[340485454,1729305040401,-410.13177793,0.00011,2]
[340485456,1729305040412,-485.3980518,0.00011,2]
[340485459,1729305040511,-8748.5,0.00011,2]
[340485460,1729305040627,-553.08859938,0.00011,2]
[340485461,1729305040738,-630.99749978,0.00011,2]
[340485462,1729305040749,-2582.64058004,0.00011,2]
[340485463,1729305040761,-1536.759524,0.00011,2]
[340485464,1729305040773,-10197.5291629,0.00011,2]
[340485465,1729305040785,-4276.48182047,0.00011,2]
[340485466,1729305043664,-2586.25672912,0.00011,2]
[340485467,1729305043802,-9643.3674893,0.00011,2]
[340485468,1729305043814,-680.95599875,0.00011,2]
[340485482,1729305046607,-349.99877428,0.00011,2]
[340485483,1729305046708,-430860.7840499,0.00011,2]
[340485488,1729305619015,6869.0,0.00027,60]
[340485489,1729305813366,161.42029614,0.00027,60]
[340485490,1729305852296,1076.08814185,0.00027,60]
[340485491,1729306025097,-334.50133387,0.00010567,2]
[340485492,1729306039194,-1515.23085968,0.00010567,2]
[340485503,1729306231902,-733.33,0.000106,2]
[340485504,1729306231912,-1981.13125599,0.00010673,2]
[340485505,1729306231924,-290.832,0.00010673,2]
[340485506,1729306237739,-1433.63710954,0.00010673,2]
[340485507,1729306237914,-203.39963447,0.00010673,2]
[340485508,1729306237924,-1853.0047,0.000107,2]
[340485509,1729306237933,-647.47566553,0.000108,2]
[340485510,1729306237943,-341.860858,0.000108,2]
[340485516,1729306239730,-1721.76887647,0.000108,2]
[340485517,1729306239740,-510.05574393,0.00010873,2]
[340485518,1729306239751,-150.0,0.00010877,2]
[340485519,1729306239760,-1755.01940867,0.00010899,2]
[340485520,1729306239769,-1090.17444503,0.00010899,2]
[340485521,1729306239928,-1701.65137555,0.00010899,2]
[340485522,1729306239938,-150.0,0.00010899,2]
[340485523,1729306239947,-1044.93222451,0.000109,2]
[340485524,1729306239958,-271.2222657,0.000109,2]
[340485525,1729306239970,-367.97480265,0.000109,2]
[340485527,1729306242972,-116.98400714,0.000109,2]
[340485528,1729306242982,-1959.5183928,0.000109,2]
[340485529,1729306242993,-350.12157203,0.000109,2]
[340485530,1729306245618,-477.16782991,0.000109,2]
[340485531,1729306245779,-1021.18951541,0.000109,2]
[340485532,1729306245787,-50069.96278985,0.000109,2]
[340485533,1729306245794,-500.0,0.000109,2]
[340485534,1729306245802,-1432.6034,0.000109,2]
[340485535,1729306245809,-8108.8219,0.000109,2]
[340485536,1729306245816,-633.5693,0.000109,2]
[340485537,1729306245823,-54058.1191,0.000109,2]
[340485538,1729306245830,-26135.6358,0.000109,2]
[340485539,1729306245836,-158.35183395,0.000109,2]
[340485540,1729306245843,-158.23,0.00010959,2]
[340485541,1729306245851,-161.36,0.00010959,2]
[340485542,1729306245858,-157.46,0.00010959,2]
[340485543,1729306245864,-95249.69813104,0.00011,2]
[340485545,1729306725738,500.0,0.00027,120]
[340485553,1729307082757,1382.99,0.00027,120]
[340485554,1729307113984,-426.886786,0.00010845,2]
[340485555,1729307114010,-300.0,0.00010899,2]
[340485556,1729307114034,-4376.248,0.000109,2]
[340485557,1729307114057,-17822.577,0.000109,2]
[340485558,1729307114083,-26135.6358,0.000109,2]
[340485559,1729307114106,-159.71465229,0.000109,2]
[340485560,1729307114130,-2512.64323854,0.000109,2]
[340485561,1729307114155,-156.85,0.00010959,2]
[340485562,1729307114181,-364062.33551087,0.00011,2]
[340485563,1729307250157,-410.30019253,0.000109,2]
[340485564,1729307431938,-300.0,0.00010899,2]
[340485565,1729307431947,-401.02930747,0.000109,2]
[340485566,1729307431957,-2003.08628299,0.000109,2]
[340485567,1729307431969,-498.96197509,0.000109,2]
[340485568,1729307431979,-829.32356941,0.000109,2]
[340485569,1729307431990,-462.25919128,0.000109,2]
[340485570,1729307432001,-4901.89310082,0.000109,2]
[340485571,1729307432013,-306.48999997,0.000109,2]
[340485587,1729307437923,-443.81585153,0.000109,2]
[340485588,1729307437934,-2790.4214724,0.000109,2]
[340485589,1729307437945,-1089.68148271,0.000109,2]
[340485590,1729307437956,-276.14857609,0.000109,2]
[340485591,1729307438102,-1732.37999999,0.000109,2]
[340485592,1729307438310,-341.98800158,0.000109,2]
[340485593,1729307438322,-541.90799385,0.000109,2]
[340485594,1729307438333,-4314.98017366,0.000109,2]
[340485595,1729307438344,-697.22222227,0.000109,2]
[340485596,1729307438356,-574.98736815,0.000109,2]
[340485598,1729307439738,-484.45827055,0.000109,2]
[340485616,1729307439952,-552.33090042,0.000109,2]
[340485618,1729307439964,-1064.4559759,0.000109,2]
[340485620,1729307439975,-372.44847801,0.000109,2]
[340485622,1729307439986,-429.15446819,0.000109,2]
[340485624,1729307439997,-1427.24044514,0.000109,2]
[340485627,1729307440006,-696.66,0.00010948,2]
[340485628,1729307440015,-2730.59955486,0.00011,2]
[340485629,1729307440025,-1996.01473461,0.00011,2]
[340485630,1729307440036,-448.41966153,0.00011,2]
[340485631,1729307440325,-32832.40933508,0.00011,2]
[340485632,1729307440337,-849.30187669,0.00011,2]
[340485633,1729307440350,-1369.1960423,0.00011,2]
[340485634,1729307440362,-546.08343447,0.00011,2]
[340485643,1729307442907,-10887.24083729,0.00011,2]
[340485644,1729307442918,-231.29,0.00011,2]
[340485646,1729307442928,-4225.05673,0.00012171,2]
[340485647,1729307442937,-12178.2665002,0.00012171,2]
[340485649,1729307442947,-162.16,0.00012179,2]
[340485650,1729307442957,-155.19,0.00012299,2]
[340485652,1729307442967,-2512.64323851,0.00012456,2]
[340485654,1729307442977,-400.0,0.00012523,2]
[340485656,1729307442986,-600.0,0.00012541,2]
[340485658,1729307442995,-550.51,0.00012691,2]
[340485660,1729307443004,-199.28,0.00012769,2]
[340485661,1729307443014,-250.0,0.00012801,2]
[340485662,1729307443023,-7244.67879122,0.00012801,2]
[340485663,1729307443100,-7024.43178761,0.00012801,2]
[340485665,1729307445959,-1721.47903938,0.00012801,2]
[340485666,1729307445970,-3616.3655298,0.00012801,2]
[340485667,1729307446002,-3561.9738,0.00012801,2]
[340485673,1729308438146,-678.5,0.00010531,2]
[340485674,1729308438168,-192.35,0.00010959,2]
[340485675,1729308438191,-158.23,0.00010959,2]
[340485676,1729308438214,-349.08391502,0.00012317,2]
[340485677,1729308439114,-520.78067525,0.00012317,2]
[340485678,1729308439136,-250.0,0.00012368,2]
[340485679,1729308439161,-87.38495624,0.00012398,2]
[340485680,1729308477204,250.0,0.0001,2]
[340485681,1729308477225,800.0,0.0001,2]
[340485682,1729308477246,301.2521188,0.0001,2]
[340485692,1729308632063,-392.61504376,0.00012398,2]
[340485693,1729308632072,-107.38495624,0.00012414,2]
[340485694,1729308632205,-453.18504376,0.00012414,2]
[340485695,1729308632215,-2074.56495624,0.00012417,2]
[340485696,1729308632350,-16345.51624854,0.00012417,2]
[340485699,1729308638204,-685.6083245,0.00012417,2]
[340485700,1729308638219,-416.945804,0.00012417,2]
[340485701,1729308638341,-350.90024439,0.00012417,2]
[340485702,1729308640149,-1455.25299964,0.00012417,2]
[340485703,1729308640161,-610.09311999,0.00012417,2]
[340485704,1729308640172,-1961.1183027,0.00012417,2]
[340485705,1729308640182,-289.47,0.00012426,2]
[340485706,1729308640191,-152.74581822,0.00012439,2]
[340485707,1729308640202,-46.53418178,0.00012439,2]
[340485708,1729308640211,-250.0,0.0001244,2]
[340485709,1729308640220,-250.0,0.00012445,2]
[340485710,1729308640229,-2504.0,0.00012451,2]
[340485711,1729308640238,-162.16,0.00012456,2]
[340485712,1729308640247,-150.0,0.00012457,2]
[340485713,1729308640256,-520.0,0.00012473,2]
[340485714,1729308640270,-499.99,0.00012473,2]
[340485715,1729308640278,-238.1,0.0001249,2]
[340485716,1729308640287,-304.9,0.00012533,2]
[340485717,1729308640296,-183.86,0.00012647,2]
[340485718,1729308640306,-1841.295985,0.000127,2]
[340485719,1729308640316,-4903.6185,0.00012701,2]
[340485720,1729308640325,-1934.2511,0.00012701,2]
[340485721,1729308640334,-678.5,0.00012795,2]
[340485722,1729308640346,-206.1707878,0.00012801,2]
[340485723,1729308640355,-1067.3402392,0.00012809,2]
[340485724,1729308640365,-12814.2430805,0.00012818,2]
[340485725,1729308640374,-1010.0,0.00013,2]
[340485726,1729308640385,-167.0,0.00013026,2]
[340485727,1729308640394,-276.1958,0.00013112,2]
[340485728,1729308640404,-238.1,0.00013115,2]
[340485729,1729308640413,-1009.0,0.000133,2]
[340485730,1729308640422,-1500.0,0.00013462,2]
[340485731,1729308640431,-1500.0,0.00013477,2]
[340485735,1729308640593,-150.0,0.00013511,2]
[340485736,1729308640603,-150.0,0.00013512,2]
[340485737,1729308640612,-150.0,0.00013512,2]
[340485738,1729308640622,-150.0,0.00013513,2]
[340485739,1729308640636,-150.0,0.00013516,2]
[340485740,1729308640645,-150.0,0.00013523,2]
[340485741,1729308640654,-150.0,0.00013525,2]
[340485742,1729308640663,-1500.0,0.00013527,2]
[340485743,1729308640672,-150.0,0.00013527,2]
[340485744,1729308640681,-150.0,0.00013533,2]
[340485745,1729308640690,-150.0,0.00013536,2]
[340485746,1729308640699,-150.0,0.00013538,2]
[340485747,1729308640708,-150.0,0.00013538,2]
[340485748,1729308640717,-150.0,0.00013546,2]
[340485749,1729308640725,-1500.0,0.00013548,2]
[340485750,1729308640734,-150.0,0.00013551,2]
[340485751,1729308640743,-152.0,0.00013553,2]
[340485752,1729308640752,-150.0,0.0001356,2]
[340485753,1729308640761,-150.0,0.00013561,2]
[340485754,1729308640770,-150.0,0.00013563,2]
[340485755,1729308640779,-150.0,0.00013564,2]
[340485756,1729308640788,-150.0,0.00013566,2]
[340485757,1729308640797,-150.0,0.00013567,2]
[340485758,1729308640805,-150.0,0.00013568,2]
[340485759,1729308640814,-150.0,0.0001357,2]
[340485760,1729308640823,-150.0,0.0001357,2]
[340485761,1729308640832,-150.0,0.00013571,2]
[340485762,1729308640841,-150.0,0.00013576,2]
[340485763,1729308640851,-150.0,0.00013577,2]
[340485764,1729308640859,-150.0,0.00013578,2]
[340485765,1729308640868,-150.0,0.00013579,2]
[340485766,1729308640878,-150.0,0.0001358,2]
[340485767,1729308640887,-150.0,0.00013582,2]
[340485768,1729308640896,-150.0,0.00013585,2]
[340485769,1729308640905,-150.0,0.00013585,2]
[340485770,1729308640915,-150.0,0.00013587,2]
[340485771,1729308640923,-150.0,0.00013588,2]
[340485772,1729308640932,-150.0,0.00013589,2]
[340485773,1729308640941,-150.0,0.00013589,2]
[340485774,1729308640952,-150.0,0.0001359,2]
[340485775,1729308640961,-150.0,0.00013591,2]
[340485776,1729308640970,-150.0,0.00013591,2]
[340485777,1729308640979,-150.0,0.00013592,2]
[340485778,1729308640988,-150.0,0.00013598,2]
[340485779,1729308640997,-150.0,0.00013602,2]
[340485780,1729308641007,-150.0,0.00013603,2]
[340485781,1729308641016,-150.0,0.00013604,2]
[340485782,1729308641025,-235.28813822,0.00013604,2]
[340485783,1729308641034,-150.0,0.00013605,2]
[340485784,1729308641044,-1500.0,0.0001361,2]
[340485785,1729308641054,-150.0,0.00013614,2]
[340485786,1729308641064,-151.83576254,0.00013617,2]
[340485787,1729308641074,-150.0,0.0001362,2]
[340485788,1729308641083,-150.0,0.00013624,2]
[340485789,1729308641091,-150.0,0.00013624,2]
[340485790,1729308641100,-562.75726688,0.00013638,2]
[340485791,1729308641110,-150.0,0.00013639,2]
[340485792,1729308641119,-150.0,0.0001364,2]
[340485793,1729308641129,-150.0,0.00013647,2]
[340485794,1729308641138,-150.0,0.00013653,2]
[340485795,1729308641147,-150.0,0.00013653,2]
[340485796,1729308641156,-150.0,0.00013657,2]
[340485797,1729308641166,-150.0,0.00013661,2]
[340485798,1729308641175,-1500.0,0.00013663,2]
[340485799,1729308641185,-150.0,0.00013668,2]
[340485800,1729308641194,-150.0,0.00013668,2]
[340485801,1729308641203,-150.0,0.00013669,2]
[340485802,1729308641213,-150.0,0.00013673,2]
[340485803,1729308641222,-150.0,0.00013675,2]
[340485804,1729308641231,-150.0,0.00013675,2]
[340485805,1729308641240,-150.0,0.00013681,2]
[340485806,1729308641250,-150.0,0.00013682,2]
[340485807,1729308641259,-150.0,0.00013684,2]
[340485808,1729308641272,-150.0,0.00013685,2]
[340485809,1729308641281,-150.0,0.00013686,2]
[340485810,1729308641290,-505.0,0.00013688,2]
[340485811,1729308641300,-150.0,0.0001369,2]
[340485812,1729308641310,-150.0,0.00013691,2]
[340485813,1729308641319,-827.16925057,0.00013695,2]
[340485814,1729308641328,-150.0,0.00013695,2]
[340485815,1729308641339,-150.0,0.00013696,2]
[340485816,1729308641348,-431.9931,0.00013697,2]
[340485817,1729308641358,-150.0,0.00013699,2]
[340485818,1729308641367,-150.0,0.00013703,2]
[340485819,1729308641377,-150.0,0.00013706,2]
[340485820,1729308641386,-150.0,0.00013706,2]
[340485821,1729308641395,-150.0,0.00013707,2]
[340485822,1729308641404,-150.0,0.0001371,2]
[340485823,1729308641414,-150.0,0.00013712,2]
[340485824,1729308641423,-150.0,0.00013713,2]
[340485825,1729308641432,-5032.5213,0.00013715,2]
[340485826,1729308641441,-150.0,0.00013717,2]
[340485827,1729308641451,-150.0,0.0001372,2]
[340485828,1729308641461,-150.0,0.00013726,2]
[340485829,1729308641470,-150.0,0.00013728,2]
[340485830,1729308641479,-150.0,0.00013729,2]
[340485831,1729308641488,-238.1,0.00013739,2]
[340485832,1729308641498,-150.0,0.0001374,2]
[340485833,1729308641508,-150.0,0.00013741,2]
[340485834,1729308641517,-150.0,0.00013745,2]
[340485835,1729308641527,-150.0,0.00013749,2]
[340485836,1729308641535,-150.0,0.00013751,2]
[340485837,1729308641545,-150.0,0.00013756,2]
[340485838,1729308641554,-150.0,0.00013756,2]
[340485839,1729308641563,-150.0,0.00013759,2]
[340485840,1729308641572,-150.0,0.00013759,2]
[340485841,1729308641581,-150.0,0.0001376,2]
[340485842,1729308641590,-150.0,0.00013763,2]
[340485843,1729308641599,-150.0,0.00013763,2]
[340485844,1729308641608,-150.0,0.00013764,2]
[340485845,1729308641617,-150.0,0.00013768,2]
[340485846,1729308641626,-150.0,0.00013778,2]
[340485847,1729308641636,-150.0,0.00013778,2]
[340485848,1729308641645,-151.0664732,0.00013781,2]
[340485849,1729308641654,-67144.949644,0.00013913,2]
[340485850,1729308641664,-2589.43188279,0.00013923,2]
[340485851,1729308641673,-480.0,0.00013948,2]
[340485852,1729308641682,-4459.1192714,0.00014013,2]
[340485853,1729308641690,-520.0,0.00014032,2]
[340485854,1729308641699,-558.251,0.00014254,2]
[340485855,1729308641708,-936.0,0.00014254,2]
[340485856,1729308641717,-1909.0,0.00014254,2]
[340485857,1729308641726,-3358.0,0.00014254,2]
[340485858,1729308641735,-809.0,0.00014254,2]
[340485859,1729308641744,-1084.0,0.00014254,2]
[340485860,1729308641753,-1300.01,0.00014254,2]
[340485861,1729308641762,-151.748,0.00014254,2]
[340485862,1729308641771,-450.0,0.00014254,2]
[340485863,1729308641780,-5887.0,0.00014254,2]
[340485864,1729308641788,-560.0,0.00014254,2]
[340485865,1729308641798,-812.0,0.00014254,2]
[340485866,1729308641807,-238.1,0.00014364,2]
[340485867,1729308641816,-183.86,0.00014754,2]
[340485868,1729308641825,-238.1,0.00014988,2]
[340485869,1729308641834,-678.5,0.00015059,2]
[340485870,1729308641843,-2589.43188275,0.00015143,2]
[340485871,1729308641854,-177.5904,0.00015367,2]
[340485872,1729308641864,-1112.578,0.00015367,2]
[340485873,1729308641874,-150.0,0.00015467,2]
[340485874,1729308641883,-150.083,0.00015467,2]
[340485875,1729308641892,-150.0,0.00015467,2]
[340485876,1729308641901,-151.141,0.00015467,2]
[340485877,1729308641910,-168.843,0.00015467,2]
[340485878,1729308641919,-171.136,0.00015467,2]
[340485879,1729308641928,-192.678,0.00015467,2]
[340485880,1729308641937,-152.323,0.00015467,2]
[340485881,1729308641946,-480.0,0.00015498,2]
[340485882,1729308641955,-520.0,0.00015591,2]
[340485883,1729308641964,-2589.43188275,0.00016362,2]
[340485884,1729308641973,-183.86,0.00016862,2]
[340485885,1729308641982,-480.0,0.00017048,2]
[340485886,1729308641991,-520.0,0.00017151,2]
[340485887,1729308642000,-555.0,0.00017254,2]
[340485888,1729308642009,-936.0,0.00017254,2]
[340485889,1729308642018,-1909.0,0.00017254,2]
[340485890,1729308642027,-3358.0,0.00017254,2]
[340485891,1729308642035,-809.0,0.00017254,2]
[340485892,1729308642044,-1084.0,0.00017254,2]
[340485893,1729308642054,-1245.0,0.00017254,2]
[340485894,1729308642063,-150.0,0.00017254,2]
[340485895,1729308642072,-450.0,0.00017254,2]
[340485896,1729308642081,-5517.45127711,0.00017254,2]
[340485897,1729308642094,-369.54872289,0.00017254,2]
[340485898,1729308642103,-204.45127711,0.00017254,2]
[340485899,1729308642117,-355.54872289,0.00017254,2]
[340485900,1729308642127,-186.65127711,0.00017254,2]
[340485901,1729308642138,-625.34872289,0.00017254,2]
[340485902,1729308642147,-678.5,0.00017322,2]
[340485903,1729308642156,-653.15127711,0.00017582,2]
[340485904,1729308642167,-1936.28060564,0.00017582,2]
[340485905,1729308642176,-152.0,0.00017905,3]
[340485906,1729308642186,-150.0,0.00017979,2]
[340485907,1729308642198,-500.0,0.00017979,2]
[340485908,1729308642208,-150.0,0.00017979,2]
[340485909,1729308642217,-500.0,0.00017979,2]
[340485910,1729308642226,-232.85770652,0.00017979,2]
[340485919,1729308643441,-2275.88700534,0.00012445,2]
[340485920,1729308643451,-2391.87522476,0.00014254,2]
[340485921,1729308643606,-9009.97131568,0.00014254,2]
[340485922,1729308643618,-2135.15345956,0.00014254,2]
[340485923,1729308643627,-267.14229348,0.00017979,2]
[340485924,1729308643638,-444.66476183,0.00017979,2]
[340485926,1729308646083,-13537.0,0.00017254,2]
[340485927,1729308646093,-19.33523817,0.00017979,2]
[340485928,1729308646103,-152.0,0.00018069,4]
[340485929,1729308646112,-152.0,0.00018232,5]
[340485930,1729308646121,-152.0,0.00018395,6]
[340485931,1729308646131,-150.0,0.00018467,2]
[340485932,1729308646142,-150.0,0.00018467,2]
[340485933,1729308646151,-150.0,0.00018467,2]
[340485934,1729308646160,-150.0,0.00018467,2]
[340485935,1729308646169,-150.0,0.00018467,2]
[340485936,1729308646178,-152.0,0.00018559,7]
[340485937,1729308646188,-480.0,0.00018597,2]
[340485938,1729308646197,-520.0,0.0001871,2]
[340485939,1729308646207,-152.0,0.00018722,8]
[340485940,1729308646216,-497.5922489,0.0001875,2]
[340485941,1729308646225,-279.2353634,0.0001875,2]
[340485942,1729308646234,-500.2664293,0.000188,2]
[340485943,1729308646243,-248.46664685,0.000188,2]
[340485944,1729308646252,-2589.43188275,0.00018802,2]
[340485945,1729308646261,-152.0,0.00018885,9]
[340485946,1729308646273,-183.86,0.0001897,2]
[340485947,1729308646283,-152.0,0.00019049,10]
[340485948,1729308646292,-152.0,0.00019212,11]
[340485949,1729308646301,-150.0,0.00019349,2]
[340485950,1729308646311,-500.0,0.00019349,2]
[340485951,1729308646320,-229.02194237,0.00019349,2]
[340485952,1729308646329,-512.24482344,0.00019349,2]
[340485953,1729308646340,-500.0,0.00019349,2]
[340485954,1729308646350,-464.0,0.00019349,2]
[340485955,1729308646360,-152.0,0.00019375,12]
[340485956,1729308646369,-152.0,0.00019539,13]
[340485957,1729308646378,-678.5,0.00019586,2]
[340485958,1729308646387,-152.0,0.00019702,14]
[340485959,1729308646397,-152.0,0.00019865,15]
[340485960,1729308646406,-7228.97430348,0.0002,2]
[340485961,1729308646415,-150.0,0.0002,2]
[340485962,1729308646424,-233.04,0.00020011,2]
[340485963,1729308646435,-2589.43188275,0.00020021,2]
[340485964,1729308646443,-152.0,0.00020029,16]
[340485965,1729308646452,-160.88278233,0.00020092,2]
[340485966,1729308646462,-364.4613,0.00020154,2]
[340485967,1729308646471,-152.0,0.00020192,17]
[340485968,1729308646480,-151.0,0.00020254,2]
[340485969,1729308646490,-275.574888,0.00020254,2]
[340485970,1729308646498,-275.574888,0.00020254,2]
[340485971,1729308646507,-1909.0,0.00020254,2]
[340485972,1729308646517,-3358.0,0.00020254,2]
[340485973,1729308646526,-808.0,0.00020254,2]
[340485974,1729308646535,-258.071,0.00020254,2]
[340485975,1729308646544,-1245.0,0.00020254,2]
[340485976,1729308646553,-150.0,0.00020254,2]
[340485977,1729308646562,-450.0,0.00020254,2]
[340485978,1729308646571,-3303.028,0.00020254,2]
[340485979,1729308646580,-560.0,0.00020254,2]
[340485980,1729308646589,-812.0,0.00020254,2]
[340485981,1729308646598,-9803.11539852,0.00020254,2]
[340485982,1729308646614,-3733.88460148,0.00020254,2]
[340485983,1729308646624,-152.0,0.00020355,18]
[340485984,1729308646634,-152.0,0.00020519,19]
[340485985,1729308646644,-158.23,0.00020653,2]
[340485986,1729308646654,-152.0,0.00020682,20]
[340485987,1729308646664,-150.0,0.00020719,2]
[340485988,1729308646674,-500.0,0.00020719,2]
[340485989,1729308646683,-500.0,0.00020719,2]
[340485990,1729308646693,-464.0,0.00020719,2]
[340485991,1729308646703,-152.0,0.00020845,21]